fUST/lending_fUST_20250615
["ID","MTS","AMOUNT","RATE_DAILY","PERIOD"]
[365836818,1749951042164,-2378.72,0.00022191,4]
[365836821,1749951042180,-460.0,0.00022191,4]
[365836823,1749951042193,-460.0,0.00022191,4]
[365836825,1749951042204,-1244.48,0.00022191,4]
[365836828,1749951042217,-2171.2,0.00022191,4]
[365836830,1749951042233,-677.12,0.00022191,4]
[365836833,1749951042247,-460.0,0.00022191,4]
[365836835,1749951042260,-778.62,0.00022191,4]
[365836838,1749951042274,-2137.88,0.00022191,4]
[365836840,1749951042286,-460.0,0.00022191,4]
[365836843,1749951042300,-1052.96,0.00022191,4]
[365836845,1749951042312,-460.0,0.00022191,4]
[365836847,1749951042323,-460.0,0.00022191,4]
[365836849,1749951042333,-460.0,0.00022191,4]
[365836851,1749951042344,-340.0,0.00022191,4]
[365836853,1749951042355,-460.0,0.00022191,4]
[365836856,1749951042366,-1024.59,0.00022191,4]
[365836858,1749951042379,-460.0,0.00022191,4]
[365836860,1749951042391,-603.02,0.00022191,4]
[365836863,1749951042403,-890.77,0.00022191,4]
[365836865,1749951042416,-460.0,0.00022191,4]
[365836867,1749951042428,-1086.4,0.00022191,4]
[365836869,1749951042441,-460.0,0.00022191,4]
[365836872,1749951042453,-486.78,0.00022191,4]
[365836874,1749951042468,-280.0,0.00022191,4]
[365836876,1749951042482,-460.0,0.00022191,4]
[365836879,1749951042493,-460.0,0.00022191,4]
[365836881,1749951042503,-460.0,0.00022191,4]
[365836883,1749951042514,-460.0,0.00022191,4]
[365836885,1749951042525,-2396.49,0.00022191,4]
[365836887,1749951042537,-494.55347429,0.00022191,4]
[365836889,1749951042550,-467.39,0.00022191,4]
[365836892,1749951042563,-460.0,0.00022191,4]
[365836894,1749951042576,-494.24,0.00022191,4]
[365836896,1749951042587,-460.0,0.00022191,4]
[365836898,1749951042597,-460.0,0.00022191,4]
[365836901,1749951042609,-1224.38,0.00022191,4]
[365836903,1749951042620,-460.0,0.00022191,4]
[365836905,1749951042633,-400.0,0.00022191,4]
[365836907,1749951042645,-460.0,0.00022191,4]
[365836910,1749951042656,-460.0,0.00022191,4]
[365836912,1749951042666,-460.0,0.00022191,4]
[365836914,1749951042677,-668.24,0.00022191,4]
[365836916,1749951042688,-881.57,0.00022191,4]
[365836918,1749951042699,-460.0,0.00022191,4]
[365836920,1749951042710,-460.0,0.00022191,4]
[365836922,1749951042721,-176.83455394,0.00022191,4]
[365836925,1749951042733,-460.0,0.00022191,4]
[365836927,1749951042745,-460.0,0.00022191,4]
[365836929,1749951042757,-1240.11,0.00022191,4]
[365836931,1749951042768,-2589.49,0.00022191,4]
[365836934,1749951042779,-486.98,0.00022191,4]
[365836936,1749951042791,-1979.79,0.00022191,4]
[365836938,1749951042803,-326.84025157,0.00022191,4]
[365836940,1749951042815,-534.1,0.00022191,4]
[365836943,1749951042826,-2685.26,0.00022191,4]
[365836945,1749951042838,-460.0,0.00022191,4]
[365836947,1749951042849,-1884.84917144,0.0002221,6]
[365836949,1749951042860,-600.0,0.0002225,2]
[365836952,1749951042870,-374.6445024,0.00022257,2]
[365836954,1749951042881,-771.25,0.0002226,7]
[365836956,1749951042894,-1884.84917144,0.00022314,7]
[365836958,1749951042906,-501.49495753,0.0002233,2]
[365836961,1749951042916,-154.918297,0.0002233,2]
[365836963,1749951042928,-771.25,0.0002236,6]
[365836965,1749951042938,-7199.05249528,0.00022365,2]
[365836967,1749951042950,-1795.94465838,0.00022389,2]
[365836969,1749951042960,-1884.84917144,0.00022417,7]
[365836972,1749951042971,-2653.80712984,0.00022437,2]
[365836974,1749951042983,-5000.0,0.00022451,2]
[365836976,1749951042993,-771.25,0.0002246,4]
[365836979,1749951043011,-151.0,0.00022464,7]
[365836981,1749951043022,-151.0,0.00022464,7]
[365836983,1749951043035,-151.0,0.00022464,7]
[365836986,1749951043046,-518.678294,0.00022464,2]
[365836988,1749951043058,-518.678294,0.00022464,2]
[365836990,1749951043070,-151.0,0.00022465,7]
[365836993,1749951043082,-151.0,0.00022465,7]
[365836995,1749951043093,-151.0,0.00022465,7]
[365836997,1749951043105,-151.0,0.00022465,7]
[365836999,1749951043116,-151.0,0.00022465,7]
[365837001,1749951043128,-238.709724,0.00022465,4]
[365837004,1749951043139,-151.0,0.00022465,7]
[365837006,1749951043150,-360.0,0.00022465,4]
[365837008,1749951043163,-518.678294,0.00022465,2]
[365837010,1749951043174,-460.0,0.00022465,4]
[365837013,1749951043185,-518.678294,0.00022465,2]
[365837015,1749951043196,-641.59,0.00022465,4]
[365837017,1749951043207,-460.0,0.00022465,4]
[365837019,1749951043218,-460.0,0.00022465,4]
[365837021,1749951043230,-344.69431804,0.00022465,4]
[365837024,1749951043241,-460.0,0.00022465,4]
[365837026,1749951043252,-460.0,0.00022465,4]
[365837028,1749951043264,-405.09977558,0.00022465,4]
[365837030,1749951043275,-370.0,0.00022465,4]
[365837032,1749951043287,-460.0,0.00022465,4]
[365837035,1749951043298,-460.0,0.00022465,4]
[365837037,1749951043309,-520.0,0.00022465,4]
[365837039,1749951043320,-797.87,0.00022465,4]
[365837041,1749951043331,-460.0,0.00022465,4]
[365837043,1749951043342,-460.0,0.00022465,4]
[365837046,1749951043353,-578.81,0.00022465,4]
[365837049,1749951043364,-460.0,0.00022465,4]
[365837052,1749951043374,-460.0,0.00022465,4]
[365837054,1749951043386,-151.0,0.00022465,7]
[365837056,1749951043397,-679.87,0.00022465,4]
[365837058,1749951043409,-460.0,0.00022465,4]
[365837060,1749951043419,-658.34,0.00022465,4]
[365837063,1749951043431,-1943.26,0.00022465,4]
[365837065,1749951043441,-151.0,0.00022465,7]
[365837067,1749951043452,-503.84,0.00022465,4]
[365837069,1749951043464,-809.14,0.00022465,2]
[365837071,1749951043477,-460.0,0.00022465,4]
[365837074,1749951043488,-460.0,0.00022465,4]
[365837076,1749951043499,-546.23,0.00022465,4]
[365837078,1749951043512,-3020.45,0.00022465,4]
[365837080,1749951043524,-2378.72,0.00022465,4]
[365837083,1749951043535,-460.0,0.00022465,4]
[365837085,1749951043548,-1244.48,0.00022465,4]
[365837087,1749951043559,-2171.2,0.00022465,4]
[365837089,1749951043568,-677.12,0.00022465,4]
[365837091,1749951043578,-778.62,0.00022465,4]
[365837093,1749951043588,-2137.88,0.00022465,4]
[365837095,1749951043597,-1052.96,0.00022465,4]
[365837114,1749951043768,-460.0,0.00022465,4]
[365837117,1749951043787,-460.0,0.00022465,4]
[365837119,1749951043798,-460.0,0.00022465,4]
[365837121,1749951043808,-460.0,0.00022465,4]
[365837123,1749951043817,-1024.59,0.00022465,4]
[365837125,1749951043829,-460.0,0.00022465,4]
[365837127,1749951043838,-603.02,0.00022465,4]
[365837129,1749951043847,-890.77,0.00022465,4]
[365837132,1749951043857,-460.0,0.00022465,4]
[365837134,1749951043866,-1086.4,0.00022465,4]
[365837136,1749951043876,-151.0,0.00022465,7]
[365837138,1749951043885,-460.0,0.00022465,4]
[365837140,1749951043894,-486.78,0.00022465,4]
[365837142,1749951043904,-460.0,0.00022465,4]
[365837144,1749951043913,-460.0,0.00022465,4]
[365837146,1749951043923,-460.0,0.00022465,4]
[365837148,1749951043933,-2396.49,0.00022465,4]
[365837150,1749951043942,-460.0,0.00022465,4]
[365837152,1749951043951,-467.39,0.00022465,4]
[365837154,1749951043961,-494.24,0.00022465,4]
[365837156,1749951043971,-531.65,0.00022465,4]
[365837158,1749951043981,-1224.38,0.00022465,4]
[365837160,1749951043990,-460.0,0.00022465,4]
[365837162,1749951044000,-460.0,0.00022465,4]
[365837164,1749951044009,-558.3280175,0.00022465,4]
[365837166,1749951044018,-668.24,0.00022465,4]
[365837168,1749951044028,-881.57,0.00022465,4]
[365837170,1749951044037,-460.0,0.00022465,4]
[365837172,1749951044048,-460.0,0.00022465,4]
[365837174,1749951044057,-529.93582077,0.00022465,4]
[365837176,1749951044067,-151.0,0.00022465,7]
[365837178,1749951044075,-460.0,0.00022465,4]
[365837180,1749951044085,-1240.11,0.00022465,4]
[365837182,1749951044094,-2589.49,0.00022465,4]
[365837184,1749951044104,-486.98,0.00022465,4]
[365837186,1749951044114,-1979.79,0.00022465,4]
[365837188,1749951044124,-534.1,0.00022465,4]
[365837190,1749951044134,-2685.26,0.00022465,4]
[365837192,1749951044143,-460.0,0.00022465,4]
[365837194,1749951044153,-151.0,0.00022466,7]
[365837196,1749951044162,-151.0,0.00022466,7]
[365837199,1749951044172,-500.0,0.00022466,2]
[365837201,1749951044182,-500.0,0.00022466,2]
[365837203,1749951044191,-500.0,0.00022466,2]
[365837205,1749951044201,-605.08442717,0.00022466,2]
[365837207,1749951044210,-500.0,0.00022466,2]
[365837209,1749951044219,-500.0,0.00022466,2]
[365837211,1749951044229,-500.0,0.00022466,2]
[365837213,1749951044238,-500.0,0.00022466,2]
[365837215,1749951044247,-500.0,0.00022466,2]
[365837216,1749951044256,-500.0,0.00022466,2]
[365837219,1749951044266,-500.0,0.00022466,2]
[365837221,1749951044279,-500.0,0.00022473,2]
[365837223,1749951044289,-335.8961344,0.00022473,2]
[365837225,1749951044298,-315.3423008,0.00022497,2]
[365837227,1749951044307,-12533.30537164,0.00022497,2]
[365837229,1749951044317,-160.0,0.00022497,2]
[365837231,1749951044327,-835.41710878,0.00022497,2]
[365837233,1749951044336,-160.0,0.00022497,2]
[365837235,1749951044345,-160.0,0.00022497,2]
[365837237,1749951044355,-160.0,0.00022497,2]
[365837239,1749951044364,-160.0,0.00022497,2]
[365837241,1749951044373,-160.0,0.00022497,2]
[365837243,1749951044382,-160.0,0.00022497,2]
[365837245,1749951044391,-213.28201367,0.00022497,2]
[365837247,1749951044400,-160.0,0.00022497,2]
[365837249,1749951044410,-151.0,0.00022497,7]
[365837251,1749951044419,-153.561152,0.00022497,7]
[365837253,1749951044428,-151.0,0.00022497,7]
[365837255,1749951044437,-151.000004,0.00022497,7]
[365837257,1749951044446,-99175.04,0.000225,7]
[365837259,1749951044455,-151.0,0.000225,7]
[365837261,1749951044467,-151.0,0.000225,7]
[365837263,1749951044477,-216.946619,0.000225,7]
[365837265,1749951044486,-216.946619,0.000225,7]
[365837267,1749951044496,-1195.650442,0.000225,7]
[365837269,1749951044507,-1195.650442,0.000225,7]
[365837271,1749951044516,-151.0,0.000225,7]
[365837273,1749951044526,-151.0,0.000225,7]
[365837275,1749951044535,-154.173015,0.000225,7]
[365837277,1749951044547,-151.0,0.000225,7]
[365837279,1749951044558,-154.173015,0.000225,7]
[365837281,1749951044568,-151.0,0.000225,7]
[365837283,1749951044578,-845.10789306,0.000225,7]
[365837285,1749951044588,-315.3423008,0.000225,7]
[365837287,1749951044598,-151.0,0.000225,7]
[365837289,1749951044607,-213.28201367,0.000225,7]
[365837291,1749951044618,-158.8399287,0.00022521,2]
[365837293,1749951044628,-1000.0,0.00022521,2]
[365837295,1749951044638,-500.0,0.00022521,2]
[365837297,1749951044648,-503.32066576,0.00022521,2]
[365837299,1749951044658,-500.0,0.00022521,2]
[365837301,1749951044667,-1884.84917144,0.00022521,7]
[365837302,1749951044676,-459.0,0.00022525,2]
[365837303,1749951044686,-771.25,0.0002256,2]
[365837304,1749951044696,-151.0,0.00022567,7]
[365837305,1749951044706,-151.0,0.00022567,7]
[365837306,1749951044715,-151.0,0.00022567,7]
[365837307,1749951044724,-2175.29,0.000226,7]
[365837308,1749951044734,-151.0,0.00022624,7]
[365837309,1749951044744,-1884.84917144,0.00022624,7]
[365837310,1749951044753,-444.0,0.00022635,2]
[365837311,1749951044763,-266.260678,0.00022639,7]
[365837312,1749951044772,-266.260678,0.00022639,7]
[365837313,1749951044782,-329.0,0.00022656,2]
[365837314,1749951044791,-771.25,0.0002266,7]
[365837315,1749951044801,-1795.94465838,0.00022674,2]
[365837316,1749951044810,-374.6445024,0.00022698,2]
[365837317,1749951044819,-1884.84917144,0.00022728,7]
[365837318,1749951044830,-151.0,0.00022737,7]
[365837319,1749951044840,-151.0,0.00022737,7]
[365837320,1749951044850,-151.0,0.00022738,7]
[365837321,1749951044859,-505.23537389,0.00022738,2]
[365837322,1749951044868,-151.0,0.00022739,7]
[365837323,1749951044877,-151.0,0.00022739,7]
[365837324,1749951044886,-151.0,0.00022739,7]
[365837325,1749951044896,-313.737995,0.00022739,7]
[365837326,1749951044905,-313.737995,0.00022739,7]
[365837327,1749951044914,-151.0,0.00022739,7]
[365837328,1749951044923,-151.0,0.00022739,7]
[365837329,1749951044932,-151.0,0.00022739,7]
[365837330,1749951044942,-152.31372,0.00022739,7]
[365837332,1749951044951,-266.260678,0.00022739,7]
[365837334,1749951044961,-266.260678,0.00022739,7]
[365837336,1749951044971,-151.0,0.00022739,7]
[365837339,1749951044980,-151.0,0.00022739,7]
[365837340,1749951044990,-152.175404,0.00022739,7]
[365837343,1749951044999,-240.032424,0.00022739,7]
[365837344,1749951045008,-240.032424,0.00022739,7]
[365837346,1749951045018,-151.0,0.00022739,7]
[365837349,1749951045028,-151.0,0.00022739,7]
[365837351,1749951045037,-518.678294,0.00022739,2]
[365837353,1749951045046,-460.0,0.00022739,4]
[365837354,1749951045055,-518.678294,0.00022739,2]
[365837356,1749951045064,-641.59,0.00022739,4]
[365837358,1749951045073,-216.946619,0.00022739,7]
[365837360,1749951045082,-216.946619,0.00022739,7]
[365837362,1749951045091,-460.0,0.00022739,4]
[365837364,1749951045102,-460.0,0.00022739,4]
[365837366,1749951045113,-1195.650442,0.00022739,7]
[365837368,1749951045123,-1195.650442,0.00022739,7]
[365837370,1749951045133,-151.0,0.00022739,7]
[365837372,1749951045142,-797.87,0.00022739,4]
[365837374,1749951045151,-151.0,0.00022739,7]
[365837377,1749951045161,-154.173015,0.00022739,7]
[365837379,1749951045170,-151.0,0.00022739,7]
[365837380,1749951045179,-154.173015,0.00022739,7]
[365837382,1749951045188,-460.0,0.00022739,4]
[365837384,1749951045198,-578.81,0.00022739,4]
[365837386,1749951045207,-447.44561737,0.00022739,4]
[365837388,1749951045216,-460.0,0.00022739,4]
[365837390,1749951045226,-679.87,0.00022739,4]
[365837393,1749951045235,-460.0,0.00022739,4]
[365837395,1749951045245,-658.34,0.00022739,4]
[365837397,1749951045255,-1943.26,0.00022739,4]
[365837399,1749951045264,-503.84,0.00022739,4]
[365837401,1749951045274,-809.14,0.00022739,2]
[365837403,1749951045283,-460.0,0.00022739,4]
[365837404,1749951045292,-460.0,0.00022739,4]
[365837406,1749951045301,-546.23,0.00022739,4]
[365837408,1749951045311,-3020.45,0.00022739,4]
[365837411,1749951045320,-2378.72,0.00022739,4]
[365837413,1749951045330,-460.0,0.00022739,4]
[365837415,1749951045339,-1244.48,0.00022739,4]
[365837416,1749951045349,-2171.2,0.00022739,4]
[365837418,1749951045358,-677.12,0.00022739,4]
[365837421,1749951045370,-778.62,0.00022739,4]
[365837423,1749951045379,-2137.88,0.00022739,4]
[365837425,1749951045390,-1052.96,0.00022739,4]
[365837427,1749951045399,-460.0,0.00022739,4]
[365837429,1749951045408,-460.0,0.00022739,4]
[365837431,1749951045418,-460.0,0.00022739,4]
[365837433,1749951045428,-460.0,0.00022739,4]
[365837435,1749951045439,-1024.59,0.00022739,4]
[365837437,1749951045448,-460.0,0.00022739,4]
[365837439,1749951045458,-603.02,0.00022739,4]
[365837441,1749951045475,-890.77,0.00022739,4]
[365837443,1749951045485,-460.0,0.00022739,4]
[365837445,1749951045494,-1086.4,0.00022739,4]
[365837447,1749951045503,-151.0,0.00022739,7]
[365837449,1749951045513,-361.81036955,0.00022739,4]
[365837451,1749951045523,-486.78,0.00022739,4]
[365837453,1749951045532,-460.0,0.00022739,4]
[365837455,1749951045543,-460.0,0.00022739,4]
[365837457,1749951045552,-460.0,0.00022739,4]
[365837459,1749951045561,-2396.49,0.00022739,4]
[365837461,1749951045571,-460.0,0.00022739,4]
[365837463,1749951045579,-467.39,0.00022739,4]
[365837465,1749951045590,-494.24,0.00022739,4]
[365837467,1749951045599,-1224.38,0.00022739,4]
[365837469,1749951045609,-460.0,0.00022739,4]
[365837471,1749951045618,-460.0,0.00022739,4]
[365837473,1749951045628,-668.24,0.00022739,4]
[365837475,1749951045637,-881.57,0.00022739,4]
[365837477,1749951045647,-460.0,0.00022739,4]
[365837479,1749951045656,-460.0,0.00022739,4]
[365837481,1749951045666,-477.45233639,0.00022739,4]
[365837483,1749951045676,-1240.11,0.00022739,4]
[365837485,1749951045686,-2589.49,0.00022739,4]
[365837487,1749951045695,-486.98,0.00022739,4]
[365837489,1749951045704,-1979.79,0.00022739,4]
[365837491,1749951045714,-534.1,0.00022739,4]
[365837493,1749951045723,-2685.26,0.00022739,4]
[365837495,1749951045733,-771.25,0.0002276,4]
[365837497,1749951045742,-2254.25838314,0.0002277,2]
[365837499,1749951045751,-151.0,0.00022771,7]
[365837501,1749951045761,-157.759288,0.00022771,7]
[365837502,1749951045771,-157.759288,0.00022771,7]
[365837505,1749951045782,-1614.389337,0.00022771,3]
[365837506,1749951045793,-317.0,0.00022791,3]
[365837508,1749951045804,-9000.0,0.00022798,2]
[365837510,1749951045813,-151.0,0.000228,7]
[365837512,1749951045822,-166.0,0.00022805,3]
[365837514,1749951045832,-1746.0,0.00022805,3]
[365837516,1749951045842,-166.0,0.00022805,3]
[365837518,1749951045851,-1746.0,0.00022805,3]
[365837520,1749951045861,-166.0,0.00022805,3]
[365837522,1749951045870,-166.0,0.00022805,3]
[365837524,1749951045879,-1746.0,0.00022805,3]
[365837526,1749951045888,-166.0,0.00022805,3]
[365837528,1749951045898,-166.0,0.00022805,3]
[365837530,1749951045907,-1746.0,0.00022805,3]
[365837532,1749951045916,-166.0,0.00022805,3]
[365837534,1749951045926,-166.0,0.00022805,3]
[365837536,1749951045936,-1746.0,0.00022805,3]
[365837538,1749951045945,-166.0,0.00022805,3]
[365837540,1749951045954,-1746.0,0.00022805,3]
[365837542,1749951045964,-166.0,0.00022805,3]
[365837544,1749951045973,-166.0,0.00022805,3]
[365837546,1749951045982,-166.0,0.00022805,3]
[365837548,1749951045991,-541.00014651,0.00022805,3]
[365837550,1749951046001,-166.0,0.00022805,3]
[365837552,1749951046010,-166.0,0.00022805,3]
[365837554,1749951046019,-203.83253942,0.00022805,3]
[365837556,1749951046028,-172.0,0.00022805,3]
[365837558,1749951046038,-317.0,0.00022805,3]
[365837560,1749951046048,-317.0,0.00022805,3]
[365837562,1749951046057,-317.0,0.00022805,3]
[365837564,1749951046066,-339.53276418,0.00022805,3]
[365837566,1749951046075,-1884.84917144,0.00022831,8]
[365837568,1749951046085,-736.0,0.00022835,2]
[365837570,1749951046095,-169.80496654,0.00022849,2]
[365837572,1749951046104,-313.737995,0.00022854,7]
[365837574,1749951046114,-313.737995,0.00022854,7]
[365837576,1749951046123,-771.25,0.0002286,2]
[365837578,1749951046132,-151.0,0.00022876,7]
[365837580,1749951046142,-151.0,0.00022876,7]
[365837582,1749951046152,-944.78738841,0.00022876,2]
[365837584,1749951046161,-5973.23,0.00022899,2]
[365837586,1749951046171,-850.41,0.000229,7]
[365837588,1749951046180,-151.0,0.000229,7]
[365837590,1749951046189,-151.0,0.000229,7]
[365837592,1749951046198,-151.0,0.000229,7]
[365837594,1749951046207,-229.82479369,0.00022913,2]
[365837596,1749951046216,-845.10789306,0.00022913,2]
[365837598,1749951046226,-160.0,0.00022913,2]
[365837600,1749951046235,-424.40141186,0.00022913,2]
[365837602,1749951046245,-800.0,0.00022919,2]
[365837604,1749951046253,-151.0,0.00022925,7]
[365837606,1749951046263,-1884.84917144,0.00022934,8]
[365837608,1749951046272,-500.0,0.00022943,2]
[365837610,1749951046281,-2876.94778097,0.00022955,2]
[365837612,1749951046291,-771.25,0.0002296,4]
[365837614,1749951046303,-1795.94465838,0.0002296,2]
[365837616,1749951046312,-216.946619,0.00022961,7]
[365837618,1749951046321,-216.946619,0.00022961,7]
[365837620,1749951046330,-151.0,0.00022961,7]
[365837622,1749951046343,-154.173015,0.00022961,7]
[365837624,1749951046352,-151.0,0.00022961,7]
[365837626,1749951046361,-154.173015,0.00022961,7]
[365837628,1749951046370,-5288.35202192,0.00022968,2]
[365837629,1749951046380,-151.0,0.00022968,7]
[365837630,1749951046389,-151.0,0.00022968,7]
[365837631,1749951046398,-151.0,0.00022968,7]
[365837632,1749951046408,-500.0,0.00022973,2]
[365837633,1749951046417,-500.0,0.00022973,2]
[365837634,1749951046427,-500.0,0.00022973,2]
[365837635,1749951046436,-500.0,0.00022973,2]
[365837636,1749951046445,-500.0,0.00022973,2]
[365837637,1749951046455,-500.0,0.00022973,2]
[365837638,1749951046467,-502.36935798,0.00022973,2]
[365837639,1749951046477,-500.0,0.00022973,2]
[365837640,1749951046487,-500.0,0.00022973,2]
[365837641,1749951046496,-500.0,0.00022973,2]
[365837642,1749951046507,-500.0,0.00022973,2]
[365837643,1749951046517,-600.0,0.00022973,2]
[365837644,1749951046527,-500.0,0.00022973,2]
[365837645,1749951046537,-500.0,0.00022973,2]
[365837646,1749951046547,-500.0,0.00022973,2]
[365837647,1749951046556,-500.0,0.00022973,2]
[365837648,1749951046566,-500.0,0.00022973,2]
[365837649,1749951046575,-500.0,0.00022973,2]
[365837650,1749951046586,-500.0,0.00022973,2]
[365837651,1749951046597,-500.0,0.00022973,2]
[365837652,1749951046606,-500.0,0.00022973,2]
[365837653,1749951046616,-420.33161541,0.00022973,2]
[365837654,1749951046627,-500.0,0.00022973,2]
[365837655,1749951046637,-500.0,0.00022973,2]
[365837656,1749951046647,-500.0,0.00022973,2]
[365837657,1749951046656,-376.21865756,0.00022973,2]
[365837658,1749951046666,-500.0,0.00022973,2]
[365837659,1749951046676,-500.0,0.00022973,2]
[365837660,1749951046686,-25395.97503115,0.00022998,2]
[365837661,1749951046696,-5000.0,0.00022999,2]
[365837662,1749951046706,-25561.65199625,0.00023,10]
[365837663,1749951046715,-151.0,0.00023,7]
[365837664,1749951046724,-160.494634,0.00023,7]
[365837665,1749951046734,-151.0,0.00023,7]
[365837666,1749951046744,-151.0,0.00023,7]
[365837667,1749951046753,-151.0,0.00023,7]
[365837668,1749951046763,-497.444528,0.00023,7]
[365837669,1749951046773,-227.952782,0.00023,7]
[365837670,1749951046782,-497.444528,0.00023,7]
[365837671,1749951046791,-227.952782,0.00023,7]
[365837672,1749951046801,-151.0,0.00023,7]
[365837673,1749951046810,-151.0,0.00023,7]
[365837674,1749951046820,-151.0,0.00023,7]
[365837675,1749951046830,-157.759288,0.00023,7]
[365837676,1749951046841,-157.759288,0.00023,7]
[365837677,1749951046851,-151.0,0.00023,7]
[365837678,1749951046860,-151.0,0.00023,7]
[365837679,1749951047004,-151.0,0.00023,7]
[365837680,1749951047020,-266.260678,0.00023,7]
[365837681,1749951047029,-266.260678,0.00023,7]
[365837682,1749951047039,-151.0,0.00023,7]
[365837683,1749951047048,-151.0,0.00023,7]
[365837684,1749951047058,-151.0,0.00023,7]
[365837685,1749951047068,-151.0,0.00023,7]
[365837686,1749951047077,-151.0,0.00023,7]
[365837687,1749951047088,-240.032424,0.00023,7]
[365837688,1749951047098,-240.032424,0.00023,7]
[365837689,1749951047107,-151.0,0.00023,7]
[365837690,1749951047116,-151.0,0.00023,7]
[365837691,1749951047127,-243.07218973,0.00023,7]
[365837692,1749951047136,-518.678294,0.00023,2]
[365837693,1749951047145,-518.678294,0.00023,2]
[365837694,1749951047155,-1195.650442,0.00023,7]
[365837695,1749951047165,-1195.650442,0.00023,7]
[365837696,1749951047175,-845.10789306,0.00023,10]
[365837697,1749951047185,-5963.37362922,0.00023,2]
[365837698,1749951047194,-826.81317095,0.00023,2]
[365837699,1749951047205,-6020.85196694,0.00023,3]
[365837700,1749951047214,-315.3423008,0.00023,10]
[365837701,1749951047224,-15651.68263261,0.00023,2]
[365837702,1749951047234,-44763.48250811,0.00023,20]
[365837767,1749951071309,1010.0,0.00024,120]
[365837768,1749951092306,704.0,0.00024658,120]
[365837770,1749951282846,176.960841,0.00013699,2]
[365837774,1749951537486,718.804315,0.00024649,120]
[365837775,1749951747620,395.18993654,0.00024994,60]
[365837779,1749951892711,1321.0,0.00024995,60]
[365837783,1749952035105,-197.92610857,0.00019875,2]
[365837784,1749952046073,-320.16898819,0.00019875,2]
[365837785,1749952046102,-455.72103454,0.00019875,2]
[365837786,1749952046124,-257.314672,0.00019983,2]
[365837787,1749952046145,-666.0,0.0002003,2]
[365837788,1749952046167,-710.99989389,0.00020076,2]
[365837789,1749952048096,-25.00010611,0.00020076,2]
[365837790,1749952048122,-282.32950835,0.00020178,2]
[365837791,1749952052132,-183.6200999,0.00020139,2]
[365837792,1749952052154,-453.67049165,0.00020178,2]
[365837793,1749952052176,-176.960841,0.00020187,2]
[365837794,1749952052197,-2341.6592994,0.00020268,2]
[365837795,1749952052219,-736.0,0.00020395,2]
[365837796,1749952052239,-168.0,0.00020438,2]
[365837797,1749952052261,-168.0,0.00020561,2]
[365837798,1749952052282,-736.0,0.00020681,2]
[365837799,1749952052302,-239.099333,0.00020761,2]
[365837800,1749952052322,-186.085733,0.0002085,2]
[365837801,1749952052346,-169.59040374,0.000209,2]
[365837802,1749952052370,-282.44247211,0.00020936,2]
[365837803,1749952052391,-600.0,0.00021154,2]
[365837804,1749952052411,-207.4,0.00021595,2]
[365837805,1749952052431,-300.0,0.00021734,2]
[365837806,1749952052452,-300.0,0.00021734,2]
[365837807,1749952052473,-1200.0,0.00021735,2]